fUST/lending_fUST_20251014
["ID","MTS","AMOUNT","RATE_DAILY","PERIOD"]
[391261300,1760449835512,-340.2249891,0.00019736,2]
[391261301,1760449835521,-160.0,0.00019739,2]
[391261302,1760449835530,-8004.28710283,0.00020242,2]
[391261303,1760449835539,-500.0,0.00020243,2]
[391261304,1760449835555,-500.0,0.00020243,2]
[391261305,1760449835564,-500.0,0.00020243,2]
[391261306,1760449835574,-500.0,0.00020243,2]
[391261307,1760449835583,-500.0,0.00020273,2]
[391261308,1760449835593,-500.0,0.00020273,2]
[391261309,1760449835602,-500.0,0.00020273,2]
[391261321,1760449835727,-500.0,0.00020295,2]
[391261324,1760449835737,-500.0,0.00020295,2]
[391261325,1760449835747,-157.46584776,0.00020295,2]
[391261327,1760449835756,-500.0,0.00020295,2]
[391261329,1760449835765,-500.0,0.00020295,2]
[391261331,1760449835776,-500.0,0.00020295,2]
[391261334,1760449835786,-500.0,0.00020295,2]
[391261336,1760449835799,-500.0,0.00020295,2]
[391261338,1760449835808,-500.0,0.00020295,2]
[391261340,1760449835818,-500.0,0.00020295,2]
[391261341,1760449835827,-500.0,0.00020295,2]
[391261343,1760449835837,-500.0,0.00020295,2]
[391261345,1760449835847,-500.0,0.00020295,2]
[391261347,1760449835856,-500.0,0.00020295,2]
[391261348,1760449835866,-500.0,0.00020295,2]
[391261349,1760449835875,-500.0,0.00020295,2]
[391261350,1760449835884,-500.0,0.00020295,2]
[391261351,1760449835893,-296.73929172,0.00020295,2]
[391261352,1760449835902,-500.0,0.00020295,2]
[391261353,1760449835911,-500.0,0.00020295,2]
[391261354,1760449835921,-500.0,0.00020295,2]
[391261355,1760449835930,-500.0,0.00020295,2]
[391261356,1760449835939,-500.0,0.00020295,2]
[391261357,1760449835948,-500.0,0.00020295,2]
[391261358,1760449835957,-215.89697927,0.00020295,2]
[391261359,1760449835967,-383.06460773,0.00020295,2]
[391261360,1760449835976,-500.0,0.00020295,2]
[391261361,1760449835985,-500.0,0.00020295,2]
[391261362,1760449835995,-500.0,0.00020295,2]
[391261363,1760449836004,-500.0,0.00020295,2]
[391261364,1760449836013,-500.0,0.00020295,2]
[391261365,1760449836022,-500.0,0.00020295,2]
[391261366,1760449836031,-487.54814998,0.00020295,2]
[391261367,1760449836041,-500.0,0.00020295,2]
[391261368,1760449836054,-500.0,0.00020295,2]
[391261369,1760449836063,-500.0,0.00020295,2]
[391261370,1760449836073,-500.0,0.00020295,2]
[391261371,1760449836083,-500.0,0.00020295,2]
[391261372,1760449836092,-500.0,0.00020295,2]
[391261373,1760449836102,-500.0,0.00020295,2]
[391261374,1760449836111,-500.0,0.00020295,2]
[391261375,1760449836121,-500.0,0.00020295,2]
[391261376,1760449836130,-500.0,0.00020295,2]
[391261377,1760449836140,-500.0,0.00020295,2]
[391261378,1760449836149,-539.46392263,0.00020295,2]
[391261379,1760449836159,-500.0,0.00020295,2]
[391261380,1760449836168,-500.0,0.00020295,2]
[391261381,1760449836178,-500.0,0.00020295,2]
[391261382,1760449836187,-500.0,0.00020295,2]
[391261383,1760449836197,-500.0,0.00020295,2]
[391261384,1760449836206,-500.0,0.00020295,2]
[391261385,1760449836215,-500.0,0.00020295,2]
[391261386,1760449836224,-500.0,0.00020295,2]
[391261387,1760449836234,-500.0,0.00020295,2]
[391261388,1760449836243,-500.0,0.00020295,2]
[391261389,1760449836253,-500.0,0.00020295,2]
[391261390,1760449836263,-500.0,0.00020295,2]
[391261391,1760449836272,-500.0,0.00020295,2]
[391261392,1760449836281,-500.0,0.00020295,2]
[391261393,1760449836291,-500.0,0.00020295,2]
[391261394,1760449836303,-500.0,0.00020295,2]
[391261395,1760449836313,-500.0,0.00020295,2]
[391261396,1760449836323,-500.0,0.00020295,2]
[391261397,1760449836333,-386.85632061,0.00020295,2]
[391261398,1760449836342,-500.0,0.00020295,2]
[391261399,1760449836352,-500.0,0.00020295,2]
[391261400,1760449836361,-500.0,0.00020295,2]
[391261401,1760449836371,-500.0,0.00020295,2]
[391261402,1760449836381,-500.0,0.00020295,2]
[391261403,1760449836390,-500.0,0.00020295,2]
[391261404,1760449836400,-500.0,0.00020295,2]
[391261405,1760449836409,-500.0,0.00020295,2]
[391261406,1760449836419,-183.86107844,0.00020295,2]
[391261407,1760449836428,-500.0,0.00020295,2]
[391261408,1760449836437,-500.0,0.00020295,2]
[391261409,1760449836447,-500.0,0.00020295,2]
[391261410,1760449836456,-500.0,0.00020295,2]
[391261411,1760449836466,-500.0,0.00020295,2]
[391261412,1760449836476,-500.0,0.00020295,2]
[391261413,1760449836485,-500.0,0.00020295,2]
[391261414,1760449836495,-500.0,0.00020295,2]
[391261415,1760449836504,-500.0,0.00020295,2]
[391261416,1760449836514,-500.0,0.00020295,2]
[391261417,1760449836523,-500.0,0.00020295,2]
[391261418,1760449836532,-500.0,0.00020295,2]
[391261419,1760449836541,-500.0,0.00020295,2]
[391261420,1760449836557,-500.0,0.00020295,2]
[391261421,1760449836568,-500.0,0.00020295,2]
[391261422,1760449836578,-500.0,0.00020295,2]
[391261423,1760449836587,-500.0,0.00020295,2]
[391261424,1760449836597,-500.0,0.00020295,2]
[391261425,1760449836606,-500.0,0.00020295,2]
[391261426,1760449836616,-500.0,0.00020295,2]
[391261427,1760449836625,-500.0,0.00020295,2]
[391261428,1760449836634,-423.29762206,0.00020295,2]
[391261429,1760449836647,-76.70237794,0.00020295,2]
[391261430,1760449836657,-500.0,0.00020295,2]
[391261431,1760449836666,-500.0,0.00020295,2]
[391261432,1760449836676,-205.76099886,0.00020295,2]
[391261433,1760449836685,-146.8299924,0.00020295,2]
[391261434,1760449836696,-353.1700076,0.00020295,2]
[391261435,1760449836705,-249.44684875,0.00020295,2]
[391261436,1760449836716,-250.55315125,0.00020295,2]
[391261437,1760449836727,-500.0,0.00020295,2]
[391261438,1760449836736,-500.0,0.00020295,2]
[391261439,1760449836745,-500.0,0.00020295,2]
[391261440,1760449836754,-500.0,0.00020295,2]
[391261441,1760449836765,-500.0,0.00020295,2]
[391261442,1760449836774,-500.0,0.00020295,2]
[391261443,1760449836784,-500.0,0.00020295,2]
[391261444,1760449836792,-155.0,0.00020297,2]
[391261445,1760449836807,-305.7821409,0.00020298,2]
[391261446,1760449836816,-636.8658645,0.00020298,2]
[391261447,1760449836825,-151.0,0.00020298,2]
[391261448,1760449836834,-433.0,0.00020298,2]
[391261449,1760449836843,-500.0,0.00020298,2]
[391261450,1760449836852,-7916.7,0.00020299,2]
[391261451,1760449836861,-7916.7,0.00020299,2]
[391261452,1760449836871,-7916.7,0.00020299,2]
[391261453,1760449836880,-7916.7,0.00020299,2]
[391261454,1760449836890,-7916.7,0.00020299,2]
[391261455,1760449836899,-7916.7,0.00020299,2]
[391261456,1760449836908,-7916.7,0.00020299,2]
[391261457,1760449836917,-7916.7,0.00020299,2]
[391261458,1760449836926,-7916.7,0.00020299,2]
[391261459,1760449836935,-7916.7,0.00020299,2]
[391261460,1760449836944,-7916.7,0.00020299,2]
[391261461,1760449836953,-7916.7,0.00020299,2]
[391261462,1760449836963,-7916.7,0.00020299,2]
[391261463,1760449836971,-7916.7,0.00020299,2]
[391261464,1760449836981,-7916.7,0.00020299,2]
[391261465,1760449836991,-7916.7,0.00020299,2]
[391261466,1760449837000,-7916.7,0.00020299,2]
[391261467,1760449837009,-7916.7,0.00020299,2]
[391261468,1760449837018,-7916.7,0.00020299,2]
[391261469,1760449837027,-7916.7,0.00020299,2]
[391261470,1760449837036,-7916.7,0.00020299,2]
[391261471,1760449837048,-7916.7,0.00020299,2]
[391261472,1760449837057,-7916.7,0.00020299,2]
[391261473,1760449837066,-7916.74918038,0.00020299,2]
[391261474,1760449837076,-384.60216159,0.00020336,2]
[391261475,1760449837085,-433.0,0.00020353,2]
[391261476,1760449837095,-433.0,0.00020408,2]
[391261477,1760449837104,-2440.89,0.00020453,2]
[391261478,1760449837113,-433.0,0.00020462,2]
[391261479,1760449837123,-433.0,0.00020517,2]
[391261480,1760449837132,-433.0,0.00020572,2]
[391261481,1760449837141,-500.0,0.00020572,2]
[391261482,1760449837151,-433.0,0.00020627,2]
[391261483,1760449837160,-433.0,0.00020682,2]
[391261484,1760449837169,-433.0,0.00020736,2]
[391261485,1760449837179,-433.0,0.00020791,2]
[391261486,1760449837189,-1000.0,0.00020821,2]
[391261487,1760449837198,-515.80169632,0.00020821,2]
[391261488,1760449837207,-433.0,0.00020846,2]
[391261489,1760449837216,-500.0,0.00020846,2]
[391261490,1760449837225,-619.0,0.00020899,2]
[391261491,1760449837235,-300.0,0.000209,2]
[391261492,1760449837244,-300.0,0.000209,2]
[391261493,1760449837253,-300.0,0.000209,2]
[391261494,1760449837262,-433.0,0.00020901,2]
[391261495,1760449837271,-428.97933408,0.00020936,2]
[391261496,1760449837281,-433.0,0.00020956,2]
[391261497,1760449837291,-433.0,0.0002101,2]
[391261498,1760449837303,-433.0,0.00021065,2]
[391261499,1760449837312,-433.0,0.0002112,2]
[391261500,1760449837322,-374.98897096,0.0002112,2]
[391261501,1760449837331,-433.0,0.00021175,2]
[391261502,1760449837340,-5512.51434242,0.00021216,2]
[391261503,1760449837349,-433.0,0.0002123,2]
[391261504,1760449837359,-433.0,0.00021284,2]
[391261505,1760449837368,-420.0,0.00021293,2]
[391261506,1760449837377,-1680.0,0.00021294,2]
[391261507,1760449837386,-420.0,0.00021294,2]
[391261508,1760449837395,-420.0,0.00021294,2]
[391261509,1760449837404,-420.0,0.00021294,2]
[391261510,1760449837413,-300.0,0.00021316,20]
[391261511,1760449837422,-300.0,0.00021316,20]
[391261512,1760449837431,-300.0,0.00021316,20]
[391261513,1760449837441,-300.0,0.00021316,20]
[391261514,1760449837450,-300.0,0.00021316,20]
[391261515,1760449837459,-300.0,0.00021316,20]
[391261516,1760449837469,-300.0,0.00021316,20]
[391261517,1760449837478,-300.0,0.00021316,20]
[391261519,1760449837487,-300.0,0.00021316,20]
[391261521,1760449837496,-300.0,0.00021316,20]
[391261522,1760449837505,-300.0,0.00021316,20]
[391261524,1760449837514,-300.0,0.00021316,20]
[391261526,1760449837524,-300.0,0.00021316,20]
[391261527,1760449837535,-300.0,0.00021316,20]
[391261528,1760449837544,-300.0,0.00021316,20]
[391261529,1760449837556,-151.0,0.00021316,20]
[391261530,1760449837567,-433.0,0.00021339,2]
[391261532,1760449837577,-1500.0,0.00021368,2]
[391261533,1760449837586,-198.0,0.00021371,20]
[391261534,1760449837596,-433.0,0.00021394,2]
[391261535,1760449837604,-1680.0,0.00021396,2]
[391261536,1760449837613,-433.0,0.00021449,2]
[391261537,1760449837623,-433.0,0.00021503,2]
[391261539,1760449837632,-473.35650658,0.00021536,2]
[391261540,1760449837641,-454.87936089,0.00021558,2]
[391261541,1760449837650,-600.0,0.00021741,20]
[391261542,1760449837659,-2000.0,0.00021916,2]
[391261543,1760449837668,-165.0,0.00022,2]
[391261544,1760449837677,-151.0,0.00022043,2]
[391261545,1760449837686,-198.0,0.00022098,2]
[391261546,1760449837695,-517.73367907,0.00022136,2]
[391261547,1760449837704,-160.0,0.00022175,2]
[391261548,1760449837713,-4881.78,0.00022312,2]
[391261549,1760449837730,-335.0,0.00022384,7]
[391261551,1760449837740,-2500.0,0.00022464,2]
[391261552,1760449837750,-260.0,0.00022723,2]
[391261554,1760449837759,-562.11085156,0.00022736,2]
[391261555,1760449837770,-2820.425364,0.00022873,2]
[391261557,1760449837780,-3031.59,0.0002296,2]
[391261558,1760449837789,-1176.36,0.00022961,3]
[391261559,1760449837804,-588.18,0.00022961,3]
[391261560,1760449837814,-294.09,0.00022961,3]
[391261562,1760449837823,-882.3,0.00022961,3]
[391261563,1760449837832,-4000.0,0.00022969,2]
[391261564,1760449837841,-370000.0,0.00022971,2]
[391261565,1760449837851,-500.0,0.00022973,2]
[391261566,1760449837860,-501.51297254,0.00022973,2]
[391261567,1760449837870,-500.0,0.00022973,2]
[391261568,1760449837879,-500.0,0.00022973,2]
[391261569,1760449837888,-500.0,0.00022973,2]
[391261570,1760449837897,-421.72081318,0.00022973,2]
[391261571,1760449837906,-500.0,0.00022973,2]
[391261572,1760449837915,-500.81563909,0.00022973,2]
[391261573,1760449837924,-200.5481334,0.00022973,2]
[391261574,1760449837933,-500.0,0.00022973,2]
[391261575,1760449837943,-500.0,0.00022973,2]
[391261576,1760449837953,-284.77758156,0.00022973,2]
[391261577,1760449837962,-52060.51,0.00023,7]
[391261578,1760449837971,-160.0,0.00023,2]
[391261579,1760449837980,-402.43064913,0.00023,7]
[391261580,1760449837990,-3000.0,0.00023012,2]
[391261581,1760449837999,-587.0,0.00023197,2]
[391261582,1760449838008,-587.0,0.00023198,2]
[391261583,1760449838017,-488.0,0.00023198,2]
[391261584,1760449838028,-390.49,0.00023242,5]
[391261585,1760449838038,-360.0,0.00023271,2]
[391261586,1760449838049,-606.48802405,0.00023336,2]
[391261587,1760449838058,-2351.0,0.00023421,2]
[391261588,1760449838068,-1003.92937964,0.00023521,2]
[391261589,1760449838077,-1000.0,0.00023521,2]
[391261590,1760449838086,-1000.0,0.00023521,2]
[391261591,1760449838096,-1587.41344845,0.0002356,2]
[391261592,1760449838105,-355.55555556,0.0002358,2]
[391261593,1760449838115,-355.55555556,0.0002358,2]
[391261594,1760449838124,-355.55555556,0.0002358,2]
[391261595,1760449838133,-402.43064913,0.000237,7]
[391261596,1760449838142,-407.79,0.00023715,2]
[391261597,1760449838152,-355.55555556,0.00023722,4]
[391261598,1760449838161,-355.55555556,0.00023722,4]
[391261599,1760449838171,-355.55555556,0.00023722,4]
[391261600,1760449838180,-447.44655504,0.00023803,2]
[391261601,1760449838189,-460.0,0.00023819,2]
[391261602,1760449838199,-355.55555556,0.00023864,6]
[391261603,1760449838208,-355.55555556,0.00023864,6]
[391261604,1760449838218,-355.55555556,0.00023864,6]
[391261605,1760449838227,-28672.65636699,0.000239,3]
[391261606,1760449838236,-720.0,0.00023915,20]
[391261607,1760449838246,-650.86519654,0.00023936,2]
[391261608,1760449838255,-150.0,0.00023973,2]
[391261609,1760449838269,-20334.33,0.00024,2]
[391261610,1760449838279,-11209.16,0.00024,2]
[391261611,1760449838288,-94428.71301377,0.00024,2]
[391261612,1760449838302,-355.55555556,0.00024005,8]
[391261613,1760449838311,-355.55555556,0.00024005,8]
[391261614,1760449838321,-179.64071856,0.0002402,2]
[391261615,1760449838331,-215.0,0.00024027,12]
[391261616,1760449838340,-1500.0,0.00024068,2]
[391261617,1760449838350,-1500.0,0.00024068,2]
[391261618,1760449838359,-355.55555556,0.00024147,10]
[391261619,1760449838370,-355.55555556,0.00024147,10]
[391261620,1760449838380,-355.55555556,0.00024147,10]
[391261621,1760449838390,-7322.67,0.00024172,2]
[391261622,1760449838400,-211.57054547,0.000242,2]
[391261623,1760449838410,-200.92979394,0.000242,2]
[391261624,1760449838420,-508.4794873,0.000242,2]
[391261625,1760449838430,-175.42339598,0.000242,2]
[391261626,1760449838439,-153.52641508,0.000242,2]
[391261627,1760449838450,-151.0,0.000242,2]
[391261628,1760449838459,-160.0,0.00024252,2]
[391261629,1760449838468,-417.15472785,0.00024252,2]
[391261630,1760449838477,-402.43064913,0.00024252,2]
[391261631,1760449838486,-160.0,0.00024252,2]
[391261632,1760449838495,-160.0,0.00024252,2]
[391261633,1760449838504,-2352.72,0.00024331,3]
[391261634,1760449838513,-1176.36,0.00024331,3]
[391261635,1760449838523,-588.18,0.00024331,3]
[391261636,1760449838532,-560.0,0.00024367,2]
[391261637,1760449838541,-2820.425364,0.00024489,2]
[391261638,1760449838650,-211.57054547,0.000245,2]
[391261639,1760449838660,-508.4794873,0.000245,2]
[391261640,1760449838670,-175.42339598,0.000245,2]
[391261641,1760449838679,-151.0,0.000245,5]
[391261642,1760449838689,-24030.82851606,0.000245,3]
[391261643,1760449838699,-200.0,0.0002451,7]
[391261644,1760449838709,-301.77797328,0.00024521,2]
[391261645,1760449838719,-695.24236903,0.00024536,2]
[391261646,1760449838733,-402.43064913,0.000246,3]
[391261647,1760449838743,-2000.0,0.00024616,2]
[391261648,1760449838752,-2000.0,0.00024616,2]
[391261649,1760449838763,-152.02672942,0.00024658,2]
[391261650,1760449838772,-380.0,0.00024658,2]
[391261651,1760449838782,-508.4794873,0.000247,2]
[391261652,1760449838792,-175.42339598,0.000247,2]
[391261653,1760449838806,-151.0,0.000247,6]
[391261654,1760449838816,-160.0,0.00024787,3]
[391261655,1760449838825,-17701.9599739,0.000248,2]
[391261656,1760449838835,-177.61376418,0.00024848,2]
[391261657,1760449838845,-931.68210389,0.00024863,2]
[391261658,1760449838854,-500.0,0.00024873,2]
[391261659,1760449838863,-500.0,0.00024873,2]
[391261660,1760449838873,-500.0,0.00024873,2]
[391261661,1760449838883,-500.46309833,0.00024873,2]
[391261662,1760449838892,-500.23894583,0.00024873,2]
[391261663,1760449838902,-634.87926624,0.00024873,2]
[391261664,1760449838912,-501.21425316,0.00024873,2]
[391261665,1760449838921,-442380.736505,0.000249,2]
[391261666,1760449838930,-255.55408596,0.00024915,2]
[391261667,1760449838940,-328.995,0.00024948,8]
[391261668,1760449838949,-175.42339598,0.00025,2]
[391261669,1760449838959,-508.4794873,0.00025,2]
[391261670,1760449838968,-52060.51,0.00025,7]
[391261671,1760449838978,-151.0,0.000251,19]
[391261672,1760449838987,-200.0,0.000251,7]
[391261673,1760449838996,-739.61954152,0.00025136,2]
[391261674,1760449839005,-2510.78884147,0.00025164,2]
[391261675,1760449839014,-237.00803039,0.00025164,2]
[391261676,1760449839024,-508.4794873,0.000252,2]
[391261677,1760449839033,-209.11706005,0.00025205,7]
[391261678,1760449839043,-1077.33486859,0.00025221,2]
[391261679,1760449839059,-176.0,0.0002527,2]
[391261680,1760449839068,-823.0,0.00025272,2]
[391261681,1760449839078,-5512.5143424,0.00025291,2]
[391261682,1760449839087,-295.3092931,0.00025378,5]
[391261683,1760449839096,-184.33940001,0.00025378,5]
[391261684,1760449839106,-508.02299742,0.00025421,2]
[391261685,1760449839117,-1000.0,0.00025421,2]
[391261686,1760449839127,-1000.0,0.00025421,2]
[391261687,1760449839137,-239.77,0.0002551,7]
[391261688,1760449839146,-151.0,0.000256,20]
[391261689,1760449839155,-984.342,0.00025603,2]
[391261690,1760449839165,-411.0,0.00025603,2]
[391261691,1760449839175,-418.168,0.00025603,2]
[391261692,1760449839186,-631.0,0.00025603,2]
[391261693,1760449839195,-2169.039,0.00025603,2]
[391261694,1760449839205,-4199.0,0.00025603,2]
[391261695,1760449839214,-3292.0,0.00025638,2]
[391261696,1760449839224,-217.0,0.00025671,17]
[391261697,1760449839233,-783.99671402,0.00025736,2]
[391261698,1760449839243,-160.0,0.00025782,4]
[391261699,1760449839253,-24030.82,0.000258,3]
[391261700,1760449839262,-440.50785904,0.00025968,2]
[391261701,1760449839272,-1500.0,0.00025968,2]
[391261702,1760449839281,-7256.53,0.00026027,2]
[391261703,1760449839290,-9763.56,0.00026031,2]
[391261704,1760449839303,-151.0,0.000261,10]
[391261705,1760449839312,-200.0,0.000261,7]
[391261706,1760449839322,-2820.425364,0.00026104,2]
[391261707,1760449839331,-864.0,0.00026307,30]
[391261708,1760449839340,-828.37388651,0.00026336,2]
[391261709,1760449839350,-157.47642121,0.00026423,2]
[391261710,1760449839359,-1500.0,0.00026516,2]
[391261711,1760449839368,-151.0,0.000266,12]
[391261712,1760449839377,-52060.51,0.000267,7]
[391261713,1760449839387,-160.0,0.00026777,5]
[391261714,1760449839396,-176.72792493,0.00026934,5]
[391261715,1760449839405,-872.751059,0.00026936,2]
[391261716,1760449839414,-200.0,0.000271,7]
[391261717,1760449839423,-1006.4760575,0.00027123,3]
[391261718,1760449839432,-151.0,0.000272,10]
[391261719,1760449839441,-160.0,0.00027315,24]
[391261720,1760449839450,-486.99699831,0.00027397,15]
[391261721,1760449839459,-7256.53,0.00027397,4]
[391261722,1760449839469,-464.353221,0.00027397,30]
[391261723,1760449839479,-150.0,0.00027397,5]
[391261724,1760449839489,-500.0,0.000275,3]
[391261725,1760449839499,-1152.0,0.00027531,2]
[391261726,1760449839508,-917.12823149,0.00027536,2]
[391261727,1760449839517,-8495.4132242,0.00027596,11]
[391261728,1760449839526,-5000.0,0.00027596,14]
[391261729,1760449839536,-5000.0,0.00027596,12]
[391261730,1760449839545,-5000.0,0.00027596,13]
[391261731,1760449839560,-5000.0,0.00027596,17]
[391261732,1760449839569,-177.61376416,0.00027603,2]
[391261734,1760449839579,-151.0,0.000277,19]
[391261735,1760449839589,-2820.425364,0.0002772,2]
[391261736,1760449839598,-150.39,0.00027727,15]
[391261737,1760449839608,-160.0,0.00027772,6]
[391261738,1760449839617,-8584.46262634,0.00027812,2]
[391261739,1760449839626,-150.39,0.00027827,15]
[391261740,1760449839636,-12204.45,0.00027891,2]
[391261741,1760449839645,-162.380719,0.00027912,2]
[391261742,1760449839655,-151.0,0.00027912,2]
[391261743,1760449839664,-1000.0,0.00027912,2]
[391261744,1760449839677,-151.0,0.00027912,2]
[391261745,1760449839686,-1000.0,0.00027912,2]
[391261746,1760449839696,-1000.0,0.00027912,2]
[391261747,1760449839705,-500.0,0.00027912,2]
[391261748,1760449839715,-151.0,0.00027912,2]
[391261749,1760449839725,-1000.0,0.00027912,2]
[391261750,1760449839735,-1000.0,0.00027912,2]
[391261751,1760449839746,-2030.296672,0.00027912,2]
[391261752,1760449839755,-500.0,0.00027912,2]
[391261753,1760449839764,-250.0,0.00027912,2]
[391261754,1760449839774,-500.0,0.00027912,2]
[391261755,1760449839784,-151.0,0.00027912,2]
[391261756,1760449839794,-1000.0,0.00027912,2]
[391261758,1760449839810,-1000.0,0.00027912,2]
[391261759,1760449839819,-250.0,0.00027912,2]
[391261760,1760449839828,-500.0,0.00027912,2]
[391261762,1760449839837,-500.0,0.00027912,2]
[391261764,1760449839847,-151.0,0.00027912,2]
[391261766,1760449839856,-151.0,0.00027912,2]
[391261768,1760449839865,-1000.0,0.00027912,2]
[391261769,1760449839874,-1000.0,0.00027912,2]
[391261770,1760449839884,-500.0,0.00027912,2]
[391261771,1760449839893,-250.0,0.00027912,2]
[391261772,1760449839903,-500.0,0.00027912,2]
[391261773,1760449839923,-151.0,0.00027912,2]
[391261774,1760449839938,-151.0,0.00027912,2]
[391261775,1760449839948,-1000.0,0.00027912,2]
[391261776,1760449839958,-1000.0,0.00027912,2]
[391261777,1760449839968,-250.0,0.00027912,2]
[391261778,1760449839977,-500.0,0.00027912,2]
[391261779,1760449839986,-151.0,0.00027912,2]
[391261781,1760449839995,-500.0,0.00027912,2]
[391261783,1760449840004,-1000.0,0.00027912,2]
[391261784,1760449840013,-194.98160629,0.00027912,2]
[391261785,1760449840023,-500.0,0.00027912,2]
[391261786,1760449840032,-1000.0,0.00027912,2]
[391261787,1760449840040,-500.0,0.00027912,2]
[391261788,1760449840055,-500.0,0.00027912,2]
[391261790,1760449840064,-151.0,0.00027912,2]
[391261791,1760449840074,-500.0,0.00027912,2]
[391261792,1760449840083,-1000.0,0.00027912,2]
[391261793,1760449840092,-500.0,0.00027912,2]
[391261794,1760449840101,-151.0,0.00027912,2]
[391261795,1760449840110,-250.0,0.00027912,2]
[391261796,1760449840120,-1000.0,0.00027912,2]
[391261797,1760449840129,-500.0,0.00027912,2]
[391261798,1760449840138,-151.0,0.00027912,2]
[391261799,1760449840148,-500.0,0.00027912,2]
[391261800,1760449840157,-250.0,0.00027912,2]
[391261801,1760449840166,-1000.0,0.00027912,2]
[391261802,1760449840175,-151.0,0.00027912,2]
[391261803,1760449840185,-500.0,0.00027912,2]
[391261804,1760449840194,-500.0,0.00027912,2]
[391261805,1760449840203,-250.0,0.00027912,2]
[391261806,1760449840212,-151.0,0.00027912,2]
[391261807,1760449840220,-500.0,0.00027912,2]
[391261808,1760449840230,-1000.0,0.00027912,2]
[391261809,1760449840239,-500.0,0.00027912,2]
[391261810,1760449840248,-1000.0,0.00027912,2]
[391261811,1760449840257,-151.0,0.00027912,2]
[391261812,1760449840267,-500.0,0.00027912,2]
[391261813,1760449840276,-505.53359552,0.00027912,2]
[391261814,1760449840286,-151.0,0.00027912,2]
[391261815,1760449840295,-1000.0,0.00027912,2]
[391261816,1760449840308,-151.0,0.00027912,2]
[391261817,1760449840317,-500.0,0.00027912,2]
[391261818,1760449840327,-1000.0,0.00027912,2]
[391261819,1760449840336,-151.0,0.00027912,2]
[391261820,1760449840346,-500.0,0.00027912,2]
[391261821,1760449840355,-151.0,0.00027912,2]
[391261822,1760449840364,-1000.0,0.00027912,2]
[391261823,1760449840373,-1000.0,0.00027912,2]
[391261824,1760449840382,-151.0,0.00027912,2]
[391261825,1760449840391,-500.0,0.00027912,2]
[391261826,1760449840400,-151.0,0.00027912,2]
[391261827,1760449840410,-1000.0,0.00027912,2]
[391261828,1760449840418,-500.0,0.00027912,2]
[391261829,1760449840428,-151.0,0.00027912,2]
[391261830,1760449840437,-1000.0,0.00027912,2]
[391261831,1760449840446,-151.0,0.00027912,2]
[391261832,1760449840455,-151.0,0.00027912,2]
[391261833,1760449840464,-1000.0,0.00027912,2]
[391261834,1760449840473,-500.0,0.00027912,2]
[391261835,1760449840482,-151.0,0.00027912,2]
[391261836,1760449840492,-1000.0,0.00027912,2]
[391261837,1760449840501,-151.0,0.00027912,2]
[391261838,1760449840510,-151.0,0.00027912,2]
[391261839,1760449840519,-1000.0,0.00027912,2]
[391261840,1760449840528,-500.0,0.00027912,2]
[391261841,1760449840537,-151.0,0.00027912,2]
[391261842,1760449840546,-1000.0,0.00027912,2]